fUSD/lending_fUSD_20250904
["ID","MTS","AMOUNT","RATE_DAILY","PERIOD"]
[383491057,1756957930871,-400.0,0.00023835,2]
[383491058,1756957930881,-400.0,0.00023835,2]
[383491059,1756957930890,-400.0,0.00023835,2]
[383491060,1756957930902,-400.0,0.00023835,2]
[383491061,1756957930911,-400.0,0.00023835,2]
[383491062,1756957930921,-400.0,0.00023835,2]
[383491063,1756957930932,-400.0,0.00023835,2]
[383491064,1756957930942,-401.57659943,0.00023835,2]
[383491065,1756957930952,-400.0,0.00023835,2]
[383491066,1756957930962,-188.54731858,0.00023835,2]
[383491067,1756957930971,-400.0,0.00023835,2]
[383491068,1756957930981,-400.0,0.00023835,2]
[383491069,1756957930992,-400.0,0.00023835,2]
[383491070,1756957931002,-400.0,0.00023835,2]
[383491071,1756957931011,-400.0,0.00023835,2]
[383491072,1756957931022,-400.0,0.00023835,2]
[383491073,1756957931032,-400.0,0.00023835,2]
[383491074,1756957931043,-400.0,0.00023835,2]
[383491075,1756957931053,-482.58,0.00023835,2]
[383491076,1756957931063,-400.0,0.00023835,2]
[383491077,1756957931073,-400.0,0.00023835,2]
[383491078,1756957931083,-400.0,0.00023835,2]
[383491079,1756957931092,-400.0,0.00023835,2]
[383491080,1756957931102,-437.89,0.00023835,2]
[383491081,1756957931112,-400.0,0.00023835,2]
[383491082,1756957931122,-400.0,0.00023835,2]
[383491083,1756957931131,-462.29,0.00023835,2]
[383491084,1756957931141,-400.0,0.00023835,2]
[383491085,1756957931151,-400.0,0.00023835,2]
[383491086,1756957931160,-400.0,0.00023835,2]
[383491087,1756957931170,-494.18,0.00023835,2]
[383491088,1756957931179,-400.0,0.00023835,2]
[383491089,1756957931189,-407.87781835,0.00023835,2]
[383491090,1756957931198,-473.61,0.00023835,2]
[383491091,1756957931207,-400.0,0.00023835,2]
[383491092,1756957931301,-400.0,0.00023835,2]
[383491093,1756957931310,-226.85124419,0.00023835,2]
[383491094,1756957931319,-400.0,0.00023835,2]
[383491095,1756957931329,-400.0,0.00023835,2]
[383491096,1756957931339,-400.0,0.00023835,2]
[383491097,1756957931348,-400.0,0.00023835,2]
[383491098,1756957931357,-400.0,0.00023835,2]
[383491099,1756957931366,-316.26238364,0.00023835,2]
[383491100,1756957931375,-515.32,0.00023835,2]
[383491101,1756957931384,-400.0,0.00023835,2]
[383491102,1756957931394,-400.0,0.00023835,2]
[383491103,1756957931403,-400.0,0.00023835,2]
[383491104,1756957931412,-400.0,0.00023835,2]
[383491105,1756957931421,-400.0,0.00023835,2]
[383491106,1756957931430,-400.0,0.00023835,2]
[383491107,1756957931440,-400.0,0.00023835,2]
[383491108,1756957931450,-544.09,0.00023835,2]
[383491109,1756957931459,-400.0,0.00023835,2]
[383491110,1756957931468,-449.45,0.00023835,2]
[383491111,1756957931477,-400.0,0.00023835,2]
[383491112,1756957931487,-464.73,0.00023835,2]
[383491113,1756957931497,-400.0,0.00023835,2]
[383491114,1756957931507,-400.0,0.00023835,2]
[383491115,1756957931516,-400.0,0.00023835,2]
[383491116,1756957931525,-400.0,0.00023835,2]
[383491117,1756957931535,-400.0,0.00023835,2]
[383491118,1756957931544,-400.0,0.00023835,2]
[383491119,1756957931553,-400.0,0.00023835,2]
[383491120,1756957931562,-442.86660571,0.00023835,2]
[383491121,1756957931572,-400.0,0.00023835,2]
[383491122,1756957931582,-408.02,0.00023835,2]
[383491123,1756957931592,-400.0,0.00023835,2]
[383491124,1756957931602,-169.18862169,0.00023835,2]
[383491125,1756957931612,-400.0,0.00023835,2]
[383491126,1756957931622,-1345.88,0.00023835,2]
[383491127,1756957931631,-400.0,0.00023835,2]
[383491128,1756957931640,-400.0,0.00023835,2]
[383491129,1756957931650,-400.0,0.00023835,2]
[383491130,1756957931660,-400.0,0.00023835,2]
[383491131,1756957931669,-400.0,0.00023835,2]
[383491132,1756957931679,-400.0,0.00023835,2]
[383491133,1756957931689,-400.0,0.00023835,2]
[383491134,1756957931698,-1946.25,0.00023835,2]
[383491135,1756957931708,-400.0,0.00023835,2]
[383491136,1756957931718,-400.0,0.00023835,2]
[383491137,1756957931727,-400.0,0.00023835,2]
[383491138,1756957931737,-1651.86,0.00023835,2]
[383491139,1756957931746,-400.0,0.00023835,2]
[383491140,1756957931756,-400.0,0.00023835,2]
[383491141,1756957931765,-400.0,0.00023835,2]
[383491142,1756957931775,-1617.94,0.00023835,2]
[383491143,1756957931784,-400.0,0.00023835,2]
[383491144,1756957931794,-746.86,0.00023835,2]
[383491145,1756957931803,-400.0,0.00023835,2]
[383491146,1756957931812,-400.0,0.00023835,2]
[383491147,1756957931821,-400.0,0.00023835,2]
[383491148,1756957931831,-400.0,0.00023835,2]
[383491149,1756957931840,-400.0,0.00023835,2]
[383491150,1756957931850,-180.59303272,0.00023835,2]
[383491151,1756957931863,-231.32429409,0.00023835,2]
[383491152,1756957931873,-449.64,0.00023835,2]
[383491153,1756957931882,-657.88,0.00023835,2]
[383491154,1756957931892,-255.46708451,0.00023835,2]
[383491155,1756957931902,-400.0,0.00023835,2]
[383491156,1756957931911,-400.0,0.00023835,2]
[383491157,1756957931920,-400.0,0.00023835,2]
[383491158,1756957931930,-412.39088048,0.00023835,2]
[383491159,1756957931940,-400.0,0.00023835,2]
[383491160,1756957931949,-400.0,0.00023835,2]
[383491161,1756957931959,-400.0,0.00023835,2]
[383491162,1756957931969,-406.33618103,0.00023835,2]
[383491163,1756957931978,-409.93162322,0.00023835,2]
[383491164,1756957931987,-400.0,0.00023835,2]
[383491165,1756957931997,-400.0,0.00023835,2]
[383491166,1756957932005,-400.0,0.00023835,2]
[383491167,1756957932015,-400.0,0.00023835,2]
[383491168,1756957932024,-400.0,0.00023835,2]
[383491169,1756957932034,-400.0,0.00023835,2]
[383491170,1756957932044,-457.34,0.00023835,2]
[383491171,1756957932054,-400.0,0.00023835,2]
[383491172,1756957932064,-510.06293297,0.00023835,2]
[383491173,1756957932075,-400.0,0.00023835,2]
[383491174,1756957932085,-408.69639744,0.00023835,2]
[383491175,1756957932096,-400.0,0.00023835,2]
[383491176,1756957932105,-400.0,0.00023835,2]
[383491177,1756957932115,-400.0,0.00023835,2]
[383491178,1756957932125,-400.0,0.00023835,2]
[383491179,1756957932135,-400.0,0.00023835,2]
[383491180,1756957932144,-400.0,0.00023835,2]
[383491181,1756957932153,-400.0,0.00023835,2]
[383491182,1756957932162,-400.0,0.00023835,2]
[383491183,1756957932170,-400.0,0.00023835,2]
[383491184,1756957932180,-400.0,0.00023835,2]
[383491185,1756957932189,-400.0,0.00023835,2]
[383491186,1756957932198,-2851.02,0.00023835,2]
[383491187,1756957932207,-400.0,0.00023835,2]
[383491188,1756957932216,-400.0,0.00023835,2]
[383491189,1756957932225,-400.0,0.00023835,2]
[383491190,1756957932235,-827.27,0.00023835,2]
[383491191,1756957932245,-251.81079823,0.00023835,2]
[383491192,1756957932255,-403.77,0.00023835,2]
[383491193,1756957932265,-400.0,0.00023835,2]
[383491194,1756957932274,-400.0,0.00023835,2]
[383491195,1756957932283,-1556.07,0.00023835,2]
[383491196,1756957932292,-400.0,0.00023835,2]
[383491197,1756957932301,-400.0,0.00023835,2]
[383491198,1756957932311,-2172.38,0.00023835,2]
[383491199,1756957932319,-461.78788838,0.00023835,2]
[383491200,1756957932328,-400.0,0.00023835,2]
[383491201,1756957932337,-400.0,0.00023835,2]
[383491202,1756957932347,-400.0,0.00023835,2]
[383491203,1756957932356,-400.0,0.00023835,2]
[383491204,1756957932366,-400.0,0.00023835,2]
[383491205,1756957932375,-400.0,0.00023835,2]
[383491206,1756957932384,-400.0,0.00023835,2]
[383491207,1756957932393,-400.0,0.00023835,2]
[383491208,1756957932402,-486.02,0.00023835,2]
[383491209,1756957932414,-525.8,0.00023835,2]
[383491210,1756957932425,-400.0,0.00023835,2]
[383491211,1756957932436,-400.0,0.00023835,2]
[383491212,1756957932446,-400.0,0.00023835,2]
[383491213,1756957932456,-400.0,0.00023835,2]
[383491214,1756957932465,-407.6531749,0.00023835,2]
[383491215,1756957932475,-400.0,0.00023835,2]
[383491216,1756957932484,-400.0,0.00023835,2]
[383491217,1756957932493,-514.55,0.00023835,2]
[383491218,1756957932502,-411.41304644,0.00023835,2]
[383491219,1756957932511,-400.0,0.00023835,2]
[383491220,1756957932519,-525.3,0.00023835,2]
[383491221,1756957932528,-400.0,0.00023835,2]
[383491222,1756957932537,-445.57,0.00023835,2]
[383491223,1756957932546,-400.0,0.00023835,2]
[383491224,1756957932555,-474.01,0.00023835,2]
[383491225,1756957932564,-164.55909825,0.00023835,2]
[383491226,1756957932573,-400.0,0.00023835,2]
[383491227,1756957932582,-473.21,0.00023835,2]
[383491228,1756957932591,-400.0,0.00023835,2]
[383491229,1756957932599,-400.0,0.00023835,2]
[383491230,1756957932608,-419.22,0.00023835,2]
[383491231,1756957932617,-518.98,0.00023835,2]
[383491232,1756957932626,-400.0,0.00023835,2]
[383491233,1756957932635,-400.0,0.00023835,2]
[383491234,1756957932645,-412.88316319,0.00023835,2]
[383491235,1756957932654,-400.0,0.00023835,2]
[383491236,1756957932663,-400.0,0.00023835,2]
[383491237,1756957932672,-400.0,0.00023835,2]
[383491238,1756957932681,-400.0,0.00023835,2]
[383491239,1756957932691,-400.0,0.00023835,2]
[383491240,1756957932702,-407.47786257,0.00023835,2]
[383491241,1756957932711,-403.33,0.00023835,2]
[383491242,1756957932721,-400.0,0.00023835,2]
[383491243,1756957932730,-400.0,0.00023835,2]
[383491244,1756957932740,-406.0,0.00023835,2]
[383491245,1756957932750,-400.0,0.00023835,2]
[383491246,1756957932760,-400.0,0.00023835,2]
[383491247,1756957932771,-400.0,0.00023835,2]
[383491248,1756957932780,-400.0,0.00023835,2]
[383491249,1756957932788,-400.0,0.00023835,2]
[383491250,1756957932798,-405.53,0.00023835,2]
[383491251,1756957932807,-446.87743335,0.00023835,2]
[383491252,1756957932815,-2430.87,0.00023835,2]
[383491253,1756957932825,-400.0,0.00023835,2]
[383491254,1756957932834,-400.0,0.00023835,2]
[383491255,1756957932843,-400.0,0.00023835,2]
[383491256,1756957932855,-1658.24,0.00023835,2]
[383491257,1756957932864,-400.0,0.00023835,2]
[383491258,1756957932873,-429.64,0.00023835,2]
[383491259,1756957932883,-400.0,0.00023835,2]
[383491260,1756957932893,-400.0,0.00023835,2]
[383491261,1756957932903,-400.0,0.00023835,2]
[383491262,1756957932912,-778.2,0.00023835,2]
[383491263,1756957932921,-400.0,0.00023835,2]
[383491264,1756957932931,-432.97535061,0.00023835,2]
[383491265,1756957932942,-400.0,0.00023835,2]
[383491266,1756957932951,-400.0,0.00023835,2]
[383491267,1756957932961,-652.71,0.00023835,2]
[383491268,1756957932971,-400.0,0.00023835,2]
[383491269,1756957932980,-400.0,0.00023835,2]
[383491270,1756957932989,-409.72934381,0.00023835,2]
[383491271,1756957932999,-400.0,0.00023835,2]
[383491272,1756957933008,-400.0,0.00023835,2]
[383491273,1756957933017,-415.38,0.00023835,2]
[383491274,1756957933027,-400.0,0.00023835,2]
[383491275,1756957933036,-400.0,0.00023835,2]
[383491276,1756957933046,-1295.76,0.00023835,2]
[383491277,1756957933056,-400.0,0.00023835,2]
[383491278,1756957933066,-400.0,0.00023835,2]
[383491279,1756957933075,-803.28,0.00023835,2]
[383491280,1756957933085,-400.0,0.00023835,2]
[383491281,1756957933094,-400.0,0.00023835,2]
[383491282,1756957933103,-400.0,0.00023835,2]
[383491283,1756957933112,-400.0,0.00023835,2]
[383491284,1756957933122,-2004.44,0.00023835,2]
[383491285,1756957933131,-400.0,0.00023835,2]
[383491286,1756957933141,-664.86,0.00023835,2]
[383491287,1756957933150,-400.0,0.00023835,2]
[383491288,1756957933159,-400.0,0.00023835,2]
[383491289,1756957933168,-400.0,0.00023835,2]
[383491290,1756957933178,-400.0,0.00023835,2]
[383491291,1756957933189,-400.0,0.00023835,2]
[383491292,1756957933198,-400.0,0.00023835,2]
[383491293,1756957933207,-400.0,0.00023835,2]
[383491294,1756957933218,-1580.62,0.00023835,2]
[383491295,1756957933227,-400.0,0.00023835,2]
[383491296,1756957933236,-400.0,0.00023835,2]
[383491297,1756957933246,-409.29740653,0.00023835,2]
[383491298,1756957933256,-400.0,0.00023835,2]
[383491299,1756957933265,-402.53,0.00023835,2]
[383491300,1756957933275,-3142.11,0.00023835,2]
[383491301,1756957933284,-400.0,0.00023835,2]
[383491302,1756957933293,-400.0,0.00023835,2]
[383491303,1756957933303,-400.0,0.00023835,2]
[383491304,1756957933312,-400.0,0.00023835,2]
[383491305,1756957933322,-400.0,0.00023835,2]
[383491306,1756957933331,-185.65840566,0.00023835,2]
[383491307,1756957933341,-400.0,0.00023835,2]
[383491308,1756957933350,-400.0,0.00023835,2]
[383491309,1756957933359,-400.0,0.00023835,2]
[383491310,1756957933368,-684.19,0.00023835,2]
[383491311,1756957933377,-400.0,0.00023835,2]
[383491312,1756957933386,-400.0,0.00023835,2]
[383491313,1756957933395,-400.0,0.00023835,2]
[383491314,1756957933405,-400.0,0.00023835,2]
[383491315,1756957933414,-400.0,0.00023835,2]
[383491316,1756957933423,-400.0,0.00023835,2]
[383491317,1756957933432,-400.0,0.00023835,2]
[383491318,1756957933441,-400.0,0.00023835,2]
[383491319,1756957933451,-400.0,0.00023835,2]
[383491320,1756957933460,-575.44,0.00023835,2]
[383491321,1756957933469,-2962.71,0.00023835,2]
[383491322,1756957933478,-400.0,0.00023835,2]
[383491323,1756957933487,-419.2,0.00023835,2]
[383491324,1756957933497,-400.0,0.00023835,2]
[383491325,1756957933506,-497.8441477,0.00023835,2]
[383491326,1756957933515,-443.20190426,0.00023835,2]
[383491327,1756957933524,-400.0,0.00023835,2]
[383491328,1756957933533,-900.0,0.00023835,9]
[383491329,1756957933542,-900.0,0.00023835,9]
[383491330,1756957933551,-900.0,0.00023835,9]
[383491331,1756957933560,-900.0,0.00023835,9]
[383491332,1756957933569,-900.0,0.00023835,9]
[383491333,1756957933578,-900.0,0.00023835,9]
[383491334,1756957933587,-900.0,0.00023835,9]
[383491335,1756957933596,-900.0,0.00023835,9]
[383491336,1756957933605,-530.0,0.00023836,7]
[383491337,1756957933615,-656.0,0.00023837,2]
[383491338,1756957933625,-468.0,0.00023837,2]
[383491339,1756957933634,-452.0,0.00023837,2]
[383491340,1756957933643,-168.0,0.0002386,2]
[383491341,1756957933652,-660.88928636,0.000239,2]
[383491342,1756957933661,-881.37835338,0.000239,2]
[383491343,1756957933670,-407.48709492,0.00023904,2]
[383491344,1756957933679,-1000.0,0.00023904,2]
[383491345,1756957933688,-2600.0,0.00023904,2]
[383491346,1756957933697,-500.0,0.00023904,2]
[383491347,1756957933706,-1086.0,0.00023919,2]
[383491348,1756957933715,-656.0,0.00023974,2]
[383491349,1756957933725,-468.0,0.00023974,2]
[383491350,1756957933735,-452.0,0.00023974,2]
[383491351,1756957933747,-9372.8094106,0.00023984,2]
[383491352,1756957933756,-4000.0,0.00024,4]
[383491353,1756957933766,-288.71178078,0.00024,2]
[383491354,1756957933775,-56900.12,0.00024,2]
[383491355,1756957933785,-3009.67700492,0.00024,7]
[383491356,1756957933794,-2032.87,0.00024,2]
[383491357,1756957933804,-200000.0,0.00024,2]
[383491358,1756957933813,-160.0,0.00024,7]
[383491359,1756957933823,-160.0,0.00024,7]
[383491360,1756957933833,-665.02,0.0002401,2]
[383491361,1756957933844,-847.0,0.0002403,2]
[383491362,1756957933858,-5281.12487421,0.000241,2]
[383491363,1756957933869,-400.0,0.00024108,2]
[383491364,1756957933879,-407.08402773,0.00024108,2]
[383491365,1756957933888,-413.33236868,0.00024108,2]
[383491366,1756957933899,-400.0,0.00024108,2]
[383491367,1756957933908,-400.0,0.00024108,2]
[383491368,1756957933918,-400.0,0.00024108,2]
[383491369,1756957933928,-341.28111363,0.00024108,2]
[383491370,1756957933939,-408.08399708,0.00024108,2]
[383491371,1756957933950,-400.0,0.00024108,2]
[383491372,1756957933959,-407.88328482,0.00024108,2]
[383491373,1756957933970,-400.0,0.00024108,2]
[383491374,1756957933979,-400.0,0.00024108,2]
[383491375,1756957933994,-400.0,0.00024108,2]
[383491376,1756957934004,-410.90285579,0.00024108,2]
[383491377,1756957934013,-400.0,0.00024108,2]
[383491378,1756957934023,-400.0,0.00024108,2]
[383491379,1756957934033,-400.0,0.00024108,2]
[383491380,1756957934043,-400.0,0.00024108,2]
[383491381,1756957934055,-500.0,0.00024108,2]
[383491382,1756957934065,-400.0,0.00024109,2]
[383491383,1756957934075,-400.0,0.00024109,2]
[383491384,1756957934085,-400.0,0.00024109,2]
[383491385,1756957934095,-153.494755,0.00024109,2]
[383491386,1756957934105,-400.0,0.00024109,2]
[383491387,1756957934114,-400.0,0.00024109,2]
[383491388,1756957934123,-400.0,0.00024109,2]
[383491389,1756957934134,-400.0,0.00024109,2]
[383491390,1756957934143,-400.0,0.00024109,2]
[383491391,1756957934154,-400.0,0.00024109,2]
[383491392,1756957934163,-400.0,0.00024109,2]
[383491393,1756957934172,-400.0,0.00024109,2]
[383491394,1756957934182,-266.08560775,0.00024109,2]
[383491395,1756957934191,-400.0,0.00024109,2]
[383491396,1756957934201,-400.0,0.00024109,2]
[383491397,1756957934210,-400.0,0.00024109,2]
[383491398,1756957934220,-400.0,0.00024109,2]
[383491399,1756957934229,-400.0,0.00024109,2]
[383491400,1756957934240,-400.0,0.00024109,2]
[383491401,1756957934250,-400.0,0.00024109,2]
[383491402,1756957934259,-400.0,0.00024109,2]
[383491403,1756957934268,-400.0,0.00024109,2]
[383491404,1756957934278,-400.0,0.00024109,2]
[383491405,1756957934287,-367.30061878,0.00024109,2]
[383491406,1756957934296,-400.0,0.00024109,2]
[383491407,1756957934306,-383.86769128,0.00024109,2]
[383491408,1756957934316,-400.0,0.00024109,2]
[383491409,1756957934325,-400.0,0.00024109,2]
[383491410,1756957934335,-424.88,0.00024109,2]
[383491411,1756957934344,-400.0,0.00024109,2]
[383491412,1756957934354,-234.60559837,0.00024109,2]
[383491413,1756957934363,-400.0,0.00024109,2]
[383491414,1756957934373,-400.0,0.00024109,2]
[383491415,1756957934382,-400.0,0.00024109,2]
[383491416,1756957934392,-464.97674657,0.00024109,2]
[383491417,1756957934401,-400.0,0.00024109,2]
[383491418,1756957934411,-400.0,0.00024109,2]
[383491419,1756957934420,-400.0,0.00024109,2]
[383491420,1756957934430,-400.0,0.00024109,2]
[383491421,1756957934439,-418.16,0.00024109,2]
[383491422,1756957934450,-400.0,0.00024109,2]
[383491423,1756957934459,-454.46,0.00024109,2]
[383491424,1756957934469,-400.0,0.00024109,2]
[383491425,1756957934478,-400.0,0.00024109,2]
[383491426,1756957934488,-469.0,0.00024109,2]
[383491427,1756957934499,-400.0,0.00024109,2]
[383491428,1756957934509,-400.0,0.00024109,2]
[383491429,1756957934519,-400.0,0.00024109,2]
[383491430,1756957934528,-407.57998006,0.00024109,2]
[383491431,1756957934538,-400.0,0.00024109,2]
[383491432,1756957934548,-400.0,0.00024109,2]
[383491433,1756957934558,-400.0,0.00024109,2]
[383491434,1756957934568,-557.54,0.00024109,2]
[383491435,1756957934578,-400.0,0.00024109,2]
[383491436,1756957934588,-400.0,0.00024109,2]
[383491437,1756957934598,-400.0,0.00024109,2]
[383491438,1756957934608,-400.0,0.00024109,2]
[383491439,1756957934617,-400.0,0.00024109,2]
[383491440,1756957934627,-400.0,0.00024109,2]
[383491441,1756957934638,-709.34,0.00024109,2]
[383491442,1756957934648,-400.0,0.00024109,2]
[383491443,1756957934658,-400.0,0.00024109,2]
[383491444,1756957934668,-400.0,0.00024109,2]
[383491445,1756957934678,-400.0,0.00024109,2]
[383491446,1756957934688,-419.48111345,0.00024109,2]
[383491447,1756957934698,-400.0,0.00024109,2]
[383491448,1756957934708,-411.96450461,0.00024109,2]
[383491449,1756957934717,-400.0,0.00024109,2]
[383491450,1756957934727,-400.0,0.00024109,2]
[383491451,1756957934737,-400.0,0.00024109,2]
[383491452,1756957934748,-400.0,0.00024109,2]
[383491453,1756957934758,-400.0,0.00024109,2]
[383491454,1756957934769,-400.0,0.00024109,2]
[383491455,1756957934779,-400.0,0.00024109,2]
[383491456,1756957934789,-400.0,0.00024109,2]
[383491457,1756957934799,-400.0,0.00024109,2]
[383491458,1756957934809,-486.03,0.00024109,2]
[383491459,1756957934819,-400.0,0.00024109,2]
[383491460,1756957934829,-400.0,0.00024109,2]
[383491461,1756957934839,-400.0,0.00024109,2]
[383491462,1756957934850,-400.0,0.00024109,2]
[383491463,1756957934862,-400.0,0.00024109,2]
[383491464,1756957934873,-400.0,0.00024109,2]
[383491465,1756957934883,-400.0,0.00024109,2]
[383491466,1756957934893,-400.0,0.00024109,2]
[383491467,1756957934904,-400.0,0.00024109,2]
[383491468,1756957934915,-400.0,0.00024109,2]
[383491469,1756957934924,-400.0,0.00024109,2]
[383491470,1756957934935,-400.0,0.00024109,2]
[383491471,1756957934945,-363.02259787,0.00024109,2]
[383491472,1756957934955,-400.0,0.00024109,2]
[383491473,1756957934965,-400.0,0.00024109,2]
[383491474,1756957934975,-400.0,0.00024109,2]
[383491475,1756957934985,-400.0,0.00024109,2]
[383491476,1756957934995,-400.0,0.00024109,2]
[383491477,1756957935006,-400.0,0.00024109,2]
[383491478,1756957935016,-400.0,0.00024109,2]
[383491479,1756957935026,-1352.44,0.00024109,2]
[383491480,1756957935036,-400.0,0.00024109,2]
[383491481,1756957935046,-400.0,0.00024109,2]
[383491482,1756957935057,-400.0,0.00024109,2]
[383491483,1756957935067,-400.0,0.00024109,2]
[383491484,1756957935077,-400.0,0.00024109,2]
[383491485,1756957935089,-413.66317094,0.00024109,2]
[383491486,1756957935100,-400.0,0.00024109,2]
[383491487,1756957935110,-519.66612677,0.00024109,2]
[383491488,1756957935120,-400.0,0.00024109,2]
[383491489,1756957935130,-400.0,0.00024109,2]
[383491490,1756957935140,-400.0,0.00024109,2]
[383491491,1756957935150,-416.20616391,0.00024109,2]
[383491492,1756957935161,-400.0,0.00024109,2]
[383491493,1756957935173,-400.0,0.00024109,2]
[383491494,1756957935183,-410.43288433,0.00024109,2]
[383491495,1756957935193,-400.0,0.00024109,2]
[383491496,1756957935203,-400.0,0.00024109,2]
[383491497,1756957935214,-400.0,0.00024109,2]
[383491498,1756957935224,-400.0,0.00024109,2]
[383491499,1756957935235,-400.0,0.00024109,2]
[383491500,1756957935246,-400.0,0.00024109,2]
[383491501,1756957935259,-400.0,0.00024109,2]
[383491502,1756957935270,-400.0,0.00024109,2]
[383491503,1756957935280,-400.0,0.00024109,2]
[383491504,1756957935291,-400.0,0.00024109,2]
[383491505,1756957935302,-400.0,0.00024109,2]
[383491506,1756957935312,-400.0,0.00024109,2]
[383491507,1756957935323,-400.0,0.00024109,2]
[383491508,1756957935334,-400.0,0.00024109,2]
[383491509,1756957935344,-400.0,0.00024109,2]
[383491510,1756957935354,-400.0,0.00024109,2]
[383491511,1756957935365,-400.0,0.00024109,2]
[383491512,1756957935377,-400.0,0.00024109,2]
[383491513,1756957935387,-400.0,0.00024109,2]
[383491514,1756957935397,-400.0,0.00024109,2]
[383491515,1756957935408,-431.4,0.00024109,2]
[383491516,1756957935418,-400.0,0.00024109,2]
[383491517,1756957935429,-400.0,0.00024109,2]
[383491518,1756957935441,-213.60385265,0.00024109,2]
[383491519,1756957935449,-851.49,0.00024109,2]
[383491520,1756957935460,-400.0,0.00024109,2]
[383491521,1756957935471,-372.97157756,0.00024109,2]
[383491522,1756957935482,-328.37452203,0.00024109,2]
[383491523,1756957935494,-400.0,0.00024109,2]
[383491524,1756957935504,-400.0,0.00024109,2]
[383491525,1756957935514,-400.0,0.00024109,2]
[383491526,1756957935525,-400.0,0.00024109,2]
[383491527,1756957935536,-400.0,0.00024109,2]
[383491528,1756957935548,-499.07,0.00024109,2]
[383491529,1756957935558,-400.0,0.00024109,2]
[383491530,1756957935569,-400.0,0.00024109,2]
[383491531,1756957935580,-400.0,0.00024109,2]
[383491532,1756957935591,-400.0,0.00024109,2]
[383491533,1756957935603,-436.71,0.00024109,2]
[383491534,1756957935613,-400.0,0.00024109,2]
[383491535,1756957935624,-400.0,0.00024109,2]
[383491536,1756957935634,-457.16966723,0.00024109,2]
[383491537,1756957935645,-400.0,0.00024109,2]
[383491538,1756957935657,-400.0,0.00024109,2]
[383491539,1756957935666,-400.0,0.00024109,2]
[383491540,1756957935677,-400.0,0.00024109,2]
[383491541,1756957935688,-400.0,0.00024109,2]
[383491542,1756957935699,-400.0,0.00024109,2]
[383491543,1756957935710,-400.0,0.00024109,2]
[383491544,1756957935720,-400.0,0.00024109,2]
[383491545,1756957935731,-416.38447177,0.00024109,2]
[383491546,1756957935743,-400.0,0.00024109,2]
[383491547,1756957935753,-400.0,0.00024109,2]
[383491548,1756957935764,-400.0,0.00024109,2]
[383491549,1756957935775,-517.26698823,0.00024109,2]
[383491550,1756957935787,-400.0,0.00024109,2]
[383491551,1756957935798,-400.0,0.00024109,2]
[383491552,1756957935809,-400.0,0.00024109,2]
[383491553,1756957935819,-400.0,0.00024109,2]
[383491554,1756957935830,-615.38,0.00024109,2]
[383491555,1756957935841,-400.0,0.00024109,2]
[383491556,1756957935853,-407.46833235,0.00024109,2]